fUSD/lending_fUSD_20260628
["ID","MTS","AMOUNT","RATE_DAILY","PERIOD"]
[426588217,1782638998000,-208.17651889,0.00012268,2]
[426588214,1782638998000,-150.99,0.00012268,2]
[426588219,1782638998000,-1059.12898972,0.00012269,2]
[426588218,1782638998000,-307.82896626,0.00012268,2]
[426588220,1782638998000,-1881.78571693,0.00012269,2]
[426588216,1782638998000,-152.0,0.00012268,2]
[426588221,1782639010000,439.23,0.00012009,2]
[426588248,1782639031000,-68464.26,0.00012359,2]
[426588247,1782639031000,-14236.17,0.00012359,2]
[426588249,1782639031000,-9999.99,0.00012359,2]
[426588246,1782639031000,-436.65,0.00012359,2]
[426588240,1782639031000,-290.67212522,0.00012331,2]
[426588243,1782639031000,-57230.98,0.00012358,2]
[426588244,1782639031000,-9999.99,0.00012358,2]
[426588245,1782639031000,-150.99,0.00012358,2]
[426588239,1782639031000,-11.46787478,0.00012331,2]
[426588242,1782639031000,-17340.76807697,0.00012358,2]
[426588238,1782639031000,-527.24,0.0001233,2]
[426588236,1782639031000,-3062.10689233,0.00012314,2]
[426588237,1782639031000,-302.15,0.00012327,2]
[426588235,1782639031000,-914.73,0.00012306,2]
[426588233,1782639031000,-216.54711319,0.00012282,2]
[426588234,1782639031000,-250.0,0.000123,2]
[426588232,1782639031000,-250.0,0.00012275,2]
[426588241,1782639031000,-150.0,0.00012357,2]
[426588251,1782639031000,-196.72,0.00012359,2]
[426588250,1782639031000,-999.99,0.00012359,2]
[426588254,1782639031000,-3554.99,0.00012359,2]
[426588257,1782639031000,-3054.71,0.00012365,2]
[426588271,1782639031000,-500.0,0.00012427,2]
[426588270,1782639031000,-156.91256733,0.00012427,2]
[426588266,1782639031000,-500.0,0.00012427,2]
[426588269,1782639031000,-500.0,0.00012427,2]
[426588267,1782639031000,-500.0,0.00012427,2]
[426588263,1782639031000,-322.98006319,0.00012427,2]
[426588265,1782639031000,-376.11493471,0.00012427,2]
[426588264,1782639031000,-500.0,0.00012427,2]
[426588268,1782639031000,-603.61977139,0.00012427,2]
[426588261,1782639031000,-173.67688436,0.00012427,2]
[426588259,1782639031000,-500.0,0.00012427,2]
[426588258,1782639031000,-302.14,0.00012407,2]
[426588260,1782639031000,-260.81995459,0.00012427,2]
[426588252,1782639031000,-2139.69,0.00012359,2]
[426588256,1782639031000,-155.1049337,0.00012365,2]
[426588255,1782639031000,-500.0,0.00012359,2]
[426588253,1782639031000,-9999.99,0.00012359,2]
[426588262,1782639031000,-500.0,0.00012427,2]
[426588272,1782639032000,-551.55133059,0.00012427,2]
[426588273,1782639032000,-525.47782916,0.00012427,2]
[426588274,1782639032000,-171.86654199,0.00012427,2]
[426588275,1782639032000,-286855.15649609,0.00012428,2]
[426588276,1782639032000,-15180.20329654,0.00012428,2]
[426588277,1782639032000,-168378.65757311,0.00012428,2]
[426588278,1782639032000,-29128.17373638,0.00012428,2]
[426588288,1782639037000,-302.14,0.0001256,2]
[426588285,1782639037000,-703.12310757,0.00012458,2]
[426588284,1782639037000,-3371.64570404,0.00012358,2]
[426588286,1782639037000,-1000.0,0.00012458,2]
[426588287,1782639037000,-302.14,0.00012483,2]
[426588290,1782639037000,-1000.0,0.00012627,2]
[426588289,1782639037000,-914.73,0.00012592,2]
[426588294,1782639037000,-938.2792234,0.0001318,2]
[426588293,1782639037000,-887.0,0.00013068,2]
[426588295,1782639037000,-1255.9488366,0.0001318,2]
[426588297,1782639037000,-250.0,0.00013496,2]
[426588296,1782639037000,-255.0,0.00013444,2]
[426588292,1782639037000,-150.0,0.00012892,2]
[426588291,1782639037000,-206.75701386,0.00012701,2]
[426588337,1782639038000,-433.0,0.00014631,2]
[426588339,1782639038000,-2000.0,0.000147,5]
[426588338,1782639038000,-500.0,0.00014658,2]
[426588335,1782639038000,-600.0,0.000145,5]
[426588332,1782639038000,-500.0,0.00014446,2]
[426588328,1782639038000,-160.0,0.0001412,2]
[426588336,1782639038000,-1300.0,0.000146,5]
[426588340,1782639038000,-173.51198,0.000147,2]
[426588331,1782639038000,-500.0,0.00014446,2]
[426588334,1782639038000,-500.0,0.00014446,2]
[426588333,1782639038000,-500.0,0.00014446,2]
[426588329,1782639038000,-210.45840793,0.00014173,2]
[426588330,1782639038000,-371.27357802,0.00014173,2]
[426588343,1782639038000,-491.9908665,0.00014892,2]
[426588348,1782639038000,-431.15156273,0.000149,2]
[426588341,1782639038000,-166.47,0.00014725,2]
[426588347,1782639038000,-3300.0,0.000149,5]
[426588346,1782639038000,-166.73854249,0.000149,2]
[426588349,1782639038000,-526.02362849,0.000149,2]
[426588350,1782639038000,-273.21229467,0.000149,2]
[426588351,1782639038000,-406.13660053,0.0001499,2]
[426588345,1782639038000,-206.59125953,0.000149,2]
[426588353,1782639038000,-500.0,0.00014999,2]
[426588352,1782639038000,-500.0,0.00014999,2]
[426588355,1782639038000,-500.0,0.00014999,2]
[426588354,1782639038000,-500.0,0.00014999,2]
[426588356,1782639038000,-500.0,0.00014999,2]
[426588344,1782639038000,-311810.6213034,0.00014892,2]
[426588326,1782639038000,-250.0,0.00014,2]
[426588308,1782639038000,-538.42378366,0.00013698,2]
[426588324,1782639038000,-151.0,0.0001399,2]
[426588358,1782639038000,-205.55545713,0.00014999,2]
[426588298,1782639038000,-1202.28832696,0.00013671,2]
[426588299,1782639038000,-2707.67167304,0.00013671,2]
[426588301,1782639038000,-500.0,0.00013698,2]
[426588300,1782639038000,-500.0,0.00013698,2]
[426588302,1782639038000,-173.28041124,0.00013698,2]
[426588304,1782639038000,-500.0,0.00013698,2]
[426588310,1782639038000,-500.0,0.00013698,2]
[426588305,1782639038000,-500.0,0.00013698,2]
[426588307,1782639038000,-500.0,0.00013698,2]
[426588306,1782639038000,-197.35396663,0.00013698,2]
[426588303,1782639038000,-500.0,0.00013698,2]
[426588309,1782639038000,-500.0,0.00013698,2]
[426588311,1782639038000,-500.0,0.00013698,2]
[426588312,1782639038000,-200.0,0.00013699,2]
[426588313,1782639038000,-1117.90274246,0.00013699,2]
[426588314,1782639038000,-527.24,0.000137,2]
[426588317,1782639038000,-155.33293359,0.0001394,2]
[426588320,1782639038000,-9495.76861889,0.00013952,2]
[426588316,1782639038000,-190.19521294,0.0001394,2]
[426588323,1782639038000,-150.0,0.0001399,2]
[426588318,1782639038000,-150.0,0.0001394,2]
[426588319,1782639038000,-7844.99945803,0.00013952,2]
[426588321,1782639038000,-17850.60022208,0.0001399,2]
[426588315,1782639038000,-247.31,0.00013727,2]
[426588322,1782639038000,-151.0,0.0001399,2]
[426588325,1782639038000,-150.0,0.0001399,2]
[426588327,1782639038000,-160.0,0.0001407,2]
[426588357,1782639038000,-500.0,0.00014999,2]
[426588342,1782639038000,-2600.0,0.000148,5]
[426588359,1782639038000,-2627130.03277505,0.00015,2]
[426588391,1782639038000,-625.52161642,0.00016438,2]
[426588394,1782639038000,-625.52161642,0.00016438,2]
[426588396,1782639038000,-625.52161642,0.00016438,2]
[426588392,1782639038000,-625.52161642,0.00016438,2]
[426588395,1782639038000,-625.52161642,0.00016438,2]
[426588398,1782639038000,-625.52161642,0.00016438,2]
[426588397,1782639038000,-625.52161642,0.00016438,2]
[426588399,1782639038000,-625.52161642,0.00016438,2]
[426588400,1782639038000,-625.52161642,0.00016438,2]
[426588401,1782639038000,-625.52161642,0.00016438,2]
[426588402,1782639038000,-625.52161642,0.00016438,2]
[426588404,1782639038000,-625.52161642,0.00016438,2]
[426588403,1782639038000,-625.52161642,0.00016438,2]
[426588407,1782639038000,-625.52161642,0.00016438,2]
[426588405,1782639038000,-625.52161642,0.00016438,2]
[426588406,1782639038000,-625.52161642,0.00016438,2]
[426588409,1782639038000,-625.52161642,0.00016438,2]
[426588408,1782639038000,-625.52161642,0.00016438,2]
[426588410,1782639038000,-625.52161642,0.00016438,2]
[426588411,1782639038000,-625.52161642,0.00016438,2]
[426588412,1782639038000,-625.52161642,0.00016438,2]
[426588414,1782639038000,-625.52161642,0.00016438,2]
[426588413,1782639038000,-625.52161642,0.00016438,2]
[426588418,1782639038000,-625.52161642,0.00016438,2]
[426588419,1782639038000,-625.52161642,0.00016438,2]
[426588417,1782639038000,-625.52161642,0.00016438,2]
[426588361,1782639038000,-139261.82277632,0.00015,2]
[426588393,1782639038000,-625.52161642,0.00016438,2]
[426588390,1782639038000,-625.52161642,0.00016438,2]
[426588415,1782639038000,-625.52161642,0.00016438,2]
[426588388,1782639038000,-625.52161642,0.00016438,2]
[426588389,1782639038000,-625.52161642,0.00016438,2]
[426588360,1782639038000,-160.41,0.00015,2]
[426588364,1782639038000,-200.136743,0.00015,2]
[426588363,1782639038000,-200.136743,0.00015,2]
[426588365,1782639038000,-200.136743,0.00015,2]
[426588367,1782639038000,-151.0,0.00015068,2]
[426588366,1782639038000,-151.0,0.00015,2]
[426588369,1782639038000,-916.14,0.00015192,2]
[426588370,1782639038000,-17340.76807692,0.00015545,2]
[426588368,1782639038000,-527.24,0.0001507,2]
[426588372,1782639038000,-199.5,0.00015931,2]
[426588375,1782639038000,-424.24749189,0.000161,2]
[426588373,1782639038000,-300.0,0.00016,2]
[426588374,1782639038000,-424.24749189,0.00016,2]
[426588362,1782639038000,-200.136743,0.00015,2]
[426588377,1782639038000,-216.0,0.00016438,2]
[426588371,1782639038000,-503.0,0.00015916,2]
[426588384,1782639038000,-625.52161642,0.00016438,2]
[426588381,1782639038000,-625.52161642,0.00016438,2]
[426588380,1782639038000,-625.52161642,0.00016438,2]
[426588385,1782639038000,-625.52161642,0.00016438,2]
[426588386,1782639038000,-625.52161642,0.00016438,2]
[426588387,1782639038000,-625.52161642,0.00016438,2]
[426588382,1782639038000,-625.52161642,0.00016438,2]
[426588379,1782639038000,-625.52161642,0.00016438,2]
[426588378,1782639038000,-625.52161642,0.00016438,2]
[426588376,1782639038000,-424.24749189,0.000162,2]
[426588416,1782639038000,-625.52161642,0.00016438,2]
[426588383,1782639038000,-625.52161642,0.00016438,2]
[426588459,1782639039000,-1504.15290551,0.00016438,2]
[426588457,1782639039000,-1504.15290551,0.00016438,2]
[426588458,1782639039000,-1504.15290551,0.00016438,2]
[426588452,1782639039000,-1504.15290551,0.00016438,2]
[426588453,1782639039000,-1504.15290551,0.00016438,2]
[426588456,1782639039000,-1504.15290551,0.00016438,2]
[426588454,1782639039000,-1504.15290551,0.00016438,2]
[426588451,1782639039000,-1504.15290551,0.00016438,2]
[426588460,1782639039000,-1504.15290551,0.00016438,2]
[426588449,1782639039000,-1504.15290551,0.00016438,2]
[426588455,1782639039000,-1504.15290551,0.00016438,2]
[426588450,1782639039000,-1504.15290551,0.00016438,2]
[426588466,1782639039000,-1504.15290551,0.00016438,2]
[426588462,1782639039000,-1504.15290551,0.00016438,2]
[426588465,1782639039000,-1504.15290551,0.00016438,2]
[426588468,1782639039000,-151.0,0.00016438,2]
[426588463,1782639039000,-1504.15290551,0.00016438,2]
[426588470,1782639039000,-151.0,0.00016438,2]
[426588471,1782639039000,-527.24,0.0001644,2]
[426588464,1782639039000,-1504.15290551,0.00016438,2]
[426588469,1782639039000,-151.0,0.00016438,2]
[426588467,1782639039000,-151.0,0.00016438,2]
[426588472,1782639039000,-241.94,0.00016603,2]
[426588446,1782639039000,-1504.15290551,0.00016438,2]
[426588474,1782639039000,-250.0,0.00016914,2]
[426588461,1782639039000,-1504.15290551,0.00016438,2]
[426588445,1782639039000,-1504.15290551,0.00016438,2]
[426588434,1782639039000,-625.52161642,0.00016438,2]
[426588443,1782639039000,-625.52161642,0.00016438,2]
[426588473,1782639039000,-172.02,0.00016712,2]
[426588420,1782639039000,-625.52161642,0.00016438,2]
[426588421,1782639039000,-625.52161642,0.00016438,2]
[426588422,1782639039000,-625.52161642,0.00016438,2]
[426588423,1782639039000,-625.52161642,0.00016438,2]
[426588425,1782639039000,-625.52161642,0.00016438,2]
[426588424,1782639039000,-625.52161642,0.00016438,2]
[426588427,1782639039000,-625.52161642,0.00016438,2]
[426588428,1782639039000,-625.52161642,0.00016438,2]
[426588426,1782639039000,-625.52161642,0.00016438,2]
[426588429,1782639039000,-625.52161642,0.00016438,2]
[426588430,1782639039000,-625.52161642,0.00016438,2]
[426588435,1782639039000,-625.52161642,0.00016438,2]
[426588433,1782639039000,-625.52161642,0.00016438,2]
[426588432,1782639039000,-625.52161642,0.00016438,2]
[426588431,1782639039000,-625.52161642,0.00016438,2]
[426588437,1782639039000,-625.52161642,0.00016438,2]
[426588436,1782639039000,-625.52161642,0.00016438,2]
[426588439,1782639039000,-625.52161642,0.00016438,2]
[426588440,1782639039000,-625.52161642,0.00016438,2]
[426588438,1782639039000,-625.52161642,0.00016438,2]
[426588442,1782639039000,-625.52161642,0.00016438,2]
[426588441,1782639039000,-625.52161642,0.00016438,2]
[426588448,1782639039000,-1504.15290551,0.00016438,2]
[426588447,1782639039000,-1504.15290551,0.00016438,2]
[426588444,1782639039000,-1504.15290551,0.00016438,2]
[426588476,1782639039000,-503.0,0.0001737,2]
[426588479,1782639039000,-166.47,0.00017671,2]
[426588478,1782639039000,-151.0,0.0001737,2]
[426588506,1782639039000,-151.0,0.00020188,2]
[426588508,1782639039000,-151.0,0.00020188,2]
[426588509,1782639039000,-151.0,0.00020188,2]
[426588511,1782639039000,-151.0,0.00020188,2]
[426588512,1782639039000,-151.0,0.00020188,2]
[426588510,1782639039000,-151.0,0.00020188,2]
[426588513,1782639039000,-151.0,0.00020188,2]
[426588516,1782639039000,-151.0,0.00020188,2]
[426588515,1782639039000,-151.0,0.00020188,2]
[426588517,1782639039000,-151.0,0.00020188,2]
[426588524,1782639039000,-151.0,0.00020188,2]
[426588521,1782639039000,-151.0,0.00020188,2]
[426588507,1782639039000,-151.0,0.00020188,2]
[426588518,1782639039000,-151.0,0.00020188,2]
[426588523,1782639039000,-151.0,0.00020188,2]
[426588519,1782639039000,-151.0,0.00020188,2]
[426588522,1782639039000,-151.0,0.00020188,2]
[426588525,1782639039000,-17340.76807692,0.00020326,2]
[426588526,1782639039000,-154.77310123,0.00020547,2]
[426588527,1782639039000,-4693.1583,0.00020548,2]
[426588528,1782639039000,-4693.1583,0.00020548,2]
[426588530,1782639039000,-4693.1583,0.00020548,2]
[426588532,1782639039000,-4693.1583,0.00020548,2]
[426588529,1782639039000,-4693.1583,0.00020548,2]
[426588531,1782639039000,-4693.1583,0.00020548,2]
[426588475,1782639039000,-17340.76807692,0.00017139,2]
[426588520,1782639039000,-151.0,0.00020188,2]
[426588514,1782639039000,-151.0,0.00020188,2]
[426588533,1782639039000,-4693.1583,0.00020548,2]
[426588504,1782639039000,-751.4793,0.00020173,7]
[426588505,1782639039000,-151.0,0.00020188,2]
[426588477,1782639039000,-151.0,0.0001737,2]
[426588484,1782639039000,-200.136743,0.00018482,2]
[426588481,1782639039000,-226.497248,0.0001823,2]
[426588480,1782639039000,-350.0,0.00018,2]
[426588483,1782639039000,-154.69729,0.00018482,2]
[426588482,1782639039000,-150.0,0.00018342,2]
[426588486,1782639039000,-200.136743,0.00018482,2]
[426588488,1782639039000,-171.473248,0.00018482,2]
[426588490,1782639039000,-17340.76807692,0.00018732,2]
[426588487,1782639039000,-200.136743,0.00018482,2]
[426588489,1782639039000,-157.060907,0.00018482,2]
[426588485,1782639039000,-200.136743,0.00018482,2]
[426588492,1782639039000,-213.0,0.00019452,2]
[426588491,1782639039000,-166.73854248,0.00019369,2]
[426588502,1782639039000,-390.0,0.0002,2]
[426588494,1782639039000,-555.4030683,0.00019673,2]
[426588498,1782639039000,-212.0,0.0002,2]
[426588499,1782639039000,-217.0,0.0002,2]
[426588500,1782639039000,-189.0,0.0002,2]
[426588503,1782639039000,-213.0,0.00020136,2]
[426588497,1782639039000,-247.3,0.00019904,2]
[426588496,1782639039000,-599.14345644,0.00019734,2]
[426588495,1782639039000,-158.27034205,0.00019727,2]
[426588493,1782639039000,-1048.64008013,0.00019468,2]
[426588501,1782639039000,-168.0,0.0002,2]
[426588571,1782639040000,-17340.76807692,0.00023513,2]
[426588570,1782639040000,-262.39999999,0.000235,2]
[426588572,1782639040000,-174.80804698,0.000237,2]
[426588568,1782639040000,-3309.53837235,0.000235,2]
[426588563,1782639040000,-150.0,0.00023203,7]
[426588569,1782639040000,-648.12381899,0.000235,2]
[426588565,1782639040000,-174.80804698,0.000235,2]
[426588564,1782639040000,-150.0,0.00023203,7]
[426588566,1782639040000,-189.86987818,0.000235,2]
[426588574,1782639040000,-3309.53837235,0.000237,2]
[426588567,1782639040000,-178.98621704,0.000235,2]
[426588573,1782639040000,-178.98621704,0.000237,2]
[426588584,1782639040000,-648.12381899,0.00024,2]
[426588576,1782639040000,-172.47823825,0.00023725,2]
[426588585,1782639040000,-1500.0,0.00024041,2]
[426588586,1782639040000,-1500.0,0.00024041,2]
[426588587,1782639040000,-211.4335081,0.00024041,2]
[426588577,1782639040000,-166.73854248,0.00023838,2]
[426588581,1782639040000,-390.0,0.00024,2]
[426588579,1782639040000,-217.0,0.00024,2]
[426588578,1782639040000,-212.0,0.00024,2]
[426588583,1782639040000,-3309.53837235,0.00024,2]
[426588580,1782639040000,-189.0,0.00024,2]
[426588582,1782639040000,-174.80804698,0.00024,2]
[426588555,1782639040000,-11987.0,0.00022166,2]
[426588575,1782639040000,-648.12381899,0.000237,2]
[426588559,1782639040000,-217.0,0.00023,2]
[426588548,1782639040000,-5000.0,0.00021918,2]
[426588553,1782639040000,-390.0,0.00022,2]
[426588588,1782639040000,-69574.3538674,0.00024129,2]
[426588536,1782639040000,-150.0,0.0002058,2]
[426588534,1782639040000,-151.000014,0.00020548,2]
[426588535,1782639040000,-150.0,0.0002058,2]
[426588537,1782639040000,-290.2944762,0.0002058,2]
[426588539,1782639040000,-213.0,0.00020821,2]
[426588538,1782639040000,-431.15156273,0.000208,2]
[426588540,1782639040000,-249.0,0.00020931,2]
[426588541,1782639040000,-212.0,0.00021,2]
[426588543,1782639040000,-189.0,0.00021,2]
[426588544,1782639040000,-390.0,0.00021,2]
[426588545,1782639040000,-169.29,0.00021301,2]
[426588546,1782639040000,-213.0,0.00021506,2]
[426588547,1782639040000,-201.0,0.00021606,3]
[426588542,1782639040000,-217.0,0.00021,2]
[426588549,1782639040000,-17340.76807692,0.00021919,2]
[426588551,1782639040000,-217.0,0.00022,2]
[426588550,1782639040000,-212.0,0.00022,2]
[426588552,1782639040000,-189.0,0.00022,2]
[426588558,1782639040000,-212.0,0.00023,2]
[426588560,1782639040000,-189.0,0.00023,2]
[426588561,1782639040000,-390.0,0.00023,2]
[426588554,1782639040000,-2000.0,0.00022051,7]
[426588562,1782639040000,-1048.64008013,0.00023023,2]
[426588557,1782639040000,-174.74688955,0.00022928,2]
[426588556,1782639040000,-213.0,0.00022191,2]
[426588590,1782639040000,-414.3,0.00024174,2]
[426588618,1782639040000,-151.0,0.00024658,2]
[426588595,1782639040000,-211.4335081,0.00024315,2]
[426588622,1782639040000,-181.35,0.00024658,2]
[426588623,1782639040000,-3309.53837235,0.000247,2]
[426588624,1782639040000,-163.45840102,0.00024749,2]
[426588625,1782639040000,-211.4335081,0.00024863,2]
[426588621,1782639040000,-180.37,0.00024658,2]
[426588628,1782639040000,-2019.11,0.0002498,2]
[426588626,1782639040000,-3309.53837235,0.000249,2]
[426588627,1782639040000,-1234.38,0.00024961,7]
[426588630,1782639040000,-344.95647649,0.00024985,2]
[426588631,1782639040000,-206.82693628,0.00024985,2]
[426588634,1782639040000,-235.0,0.00025,2]
[426588633,1782639040000,-227.0,0.00025,2]
[426588632,1782639040000,-1688.81,0.00025,30]
[426588641,1782639040000,-211.4335081,0.00025137,2]
[426588639,1782639040000,-2000.0,0.00025042,7]
[426588637,1782639040000,-180.37,0.00025018,7]
[426588636,1782639040000,-399.0,0.00025,2]
[426588638,1782639040000,-181.35,0.00025018,7]
[426588635,1782639040000,-200.10966445,0.00025,2]
[426588640,1782639040000,-17340.76807692,0.00025106,2]
[426588642,1782639040000,-3309.53837235,0.000252,2]
[426588644,1782639040000,-181.35,0.00025378,30]
[426588646,1782639040000,-211.4335081,0.00025411,2]
[426588645,1782639040000,-3309.53837235,0.000254,2]
[426588591,1782639040000,-419.48,0.00024174,2]
[426588620,1782639040000,-1000.0,0.00024658,2]
[426588612,1782639040000,-197.9,0.00024658,2]
[426588629,1782639040000,-223.80627963,0.00024985,2]
[426588617,1782639040000,-151.0,0.00024658,2]
[426588597,1782639040000,-648.12381899,0.000244,2]
[426588592,1782639040000,-1234.38,0.00024174,2]
[426588589,1782639040000,-14989.58,0.00024174,2]
[426588596,1782639040000,-3309.53837235,0.000244,2]
[426588593,1782639040000,-3309.53837235,0.000242,2]
[426588594,1782639040000,-648.12381899,0.000242,2]
[426588598,1782639040000,-211.4335081,0.00024589,2]
[426588600,1782639040000,-500.0,0.00024657,2]
[426588599,1782639040000,-500.0,0.00024657,2]
[426588601,1782639040000,-500.0,0.00024657,2]
[426588611,1782639040000,-500.0,0.00024657,2]
[426588603,1782639040000,-500.0,0.00024657,2]
[426588602,1782639040000,-500.0,0.00024657,2]
[426588605,1782639040000,-500.0,0.00024657,2]
[426588607,1782639040000,-500.0,0.00024657,2]
[426588610,1782639040000,-500.0,0.00024657,2]
[426588606,1782639040000,-500.0,0.00024657,2]
[426588615,1782639040000,-151.0,0.00024658,2]
[426588613,1782639040000,-151.0,0.00024658,2]
[426588616,1782639040000,-151.0,0.00024658,2]
[426588614,1782639040000,-151.0,0.00024658,2]
[426588619,1782639040000,-180.002584,0.00024658,2]
[426588643,1782639040000,-180.37,0.00025378,30]
[426588609,1782639040000,-500.0,0.00024657,2]
[426588604,1782639040000,-500.0,0.00024657,2]
[426588608,1782639040000,-500.0,0.00024657,2]
[426588652,1782639041000,-249.3060658,0.00025797,7]
[426588647,1782639041000,-200.0,0.00025593,2]
[426588648,1782639041000,-211.4335081,0.00025685,2]
[426588649,1782639041000,-3309.53837235,0.000257,2]
[426588651,1782639041000,-406.13660053,0.0002579,2]
[426588650,1782639041000,-691.0,0.0002575,5]
[426588654,1782639041000,-300.87,0.00012889,2]
[426588659,1782639041000,-201.67701296,0.00014757,2]
[426588656,1782639041000,-1181.44976415,0.000258,2]
[426588653,1782639041000,-158191.9781648,0.000258,2]
[426588658,1782639041000,-234.39740061,0.00014757,2]
[426588657,1782639041000,-158.8,0.00013155,2]
[426588660,1782639041000,-350.33533698,0.00014757,2]
[426588661,1782639041000,-999.13770551,0.00014757,2]
[426588655,1782639041000,-14.09,0.00012889,2]
[426588676,1782639043000,-810.62954403,0.00013952,2]
[426588677,1782639043000,-474.89821833,0.00013952,2]
[426588678,1782639043000,-273.76151236,0.00013952,2]
[426588680,1782639043000,-1284.15613683,0.00013952,2]
[426588683,1782639043000,-820.368973,0.00014757,2]
[426588681,1782639043000,-4558.84386317,0.00014757,2]
[426588682,1782639043000,-2213.75770662,0.00014757,2]
[426588684,1782639043000,-93.68151852,0.00014757,2]
[426588685,1782639043000,-471.79970756,0.00014757,2]
[426588679,1782639043000,-528.20029244,0.00013952,2]
[426588690,1782639045000,-2761.87842957,0.00014757,2]
[426588692,1782639045000,-158.8,0.00017539,2]
[426588691,1782639045000,-158.8,0.00015347,2]
[426588719,1782639046000,-211.4335081,0.00025959,2]
[426588718,1782639046000,-298.5,0.00025931,2]
[426588716,1782639046000,-183.69102486,0.00025829,2]
[426588713,1782639046000,-154.23271012,0.00025829,2]
[426588714,1782639046000,-153.21739881,0.00025829,2]
[426588715,1782639046000,-155.40641446,0.00025829,2]
[426588711,1782639046000,-413.65387257,0.00025826,2]
[426588709,1782639046000,-152.58868124,0.00025826,2]
[426588712,1782639046000,-152.12144036,0.00025829,2]
[426588717,1782639046000,-168.21899528,0.00025829,2]
[426588706,1782639046000,-184.81426354,0.00025826,2]
[426588710,1782639046000,-443.06706559,0.00025826,2]
[426588721,1782639046000,-273.21229465,0.00026074,2]
[426588708,1782639046000,-517.43471474,0.00025826,2]
[426588702,1782639046000,-200.136743,0.000258,2]
[426588705,1782639046000,-207.42637966,0.00025826,2]
[426588694,1782639046000,-151.0,0.00024961,2]
[426588696,1782639046000,-14859.32881938,0.000258,2]
[426588698,1782639046000,-151.0,0.000258,2]
[426588699,1782639046000,-151.0,0.000258,2]
[426588695,1782639046000,-150.0,0.00024961,2]
[426588700,1782639046000,-151.0,0.000258,2]
[426588697,1782639046000,-151.0,0.000258,2]
[426588701,1782639046000,-200.136743,0.000258,2]
[426588704,1782639046000,-200.136743,0.000258,2]
[426588703,1782639046000,-200.136743,0.000258,2]
[426588693,1782639046000,-158.8,0.00019732,2]
[426588720,1782639046000,-526.02362849,0.00026074,2]
[426588707,1782639046000,-447.61255927,0.00025826,2]
[426588722,1782639046000,-3068.63509762,0.0002619,2]
[426588743,1782639046000,-211.4335081,0.00026507,2]
[426588724,1782639046000,-211.4335081,0.00026233,2]
[426588727,1782639046000,-689.91295298,0.00026386,2]
[426588754,1782639046000,-14761.71596387,0.000268,2]
[426588752,1782639046000,-466.0,0.000268,2]
[426588753,1782639046000,-658.25633796,0.000268,2]
[426588750,1782639046000,-844800.79373441,0.000268,2]
[426588748,1782639046000,-406.13660053,0.0002679,2]
[426588751,1782639046000,-1057.83701526,0.000268,2]
[426588746,1782639046000,-17340.76807692,0.000267,2]
[426588747,1782639046000,-211.4335081,0.00026781,2]
[426588740,1782639046000,-367.38204972,0.00026389,2]
[426588742,1782639046000,-7860.41452025,0.000264,2]
[426588744,1782639046000,-1048.64008013,0.00026579,2]
[426588736,1782639046000,-157.09256025,0.00026389,2]
[426588735,1782639046000,-308.46542023,0.00026389,2]
[426588745,1782639046000,-431.15156273,0.000267,2]
[426588739,1782639046000,-221.5335328,0.00026389,2]
[426588723,1782639046000,-12455.50162298,0.0002619,2]
[426588728,1782639046000,-179.39664228,0.00026386,2]
[426588741,1782639046000,-336.43799056,0.00026389,2]
[426588726,1782639046000,-671.4188389,0.00026386,2]
[426588731,1782639046000,-620.48080885,0.00026386,2]
[426588730,1782639046000,-173.27296357,0.00026386,2]
[426588725,1782639046000,-472.40806208,0.00026386,2]